[Event "Biel DQA Blitzn"]
[Site "Biel/Bienne, Switzerland"]
[Date "2022.07.17"]
[Round "5.4"]
[White "Ciarletta, Iris"]
[Black "Tamrazyan, Gohar"]
[Result "1-0"]
[TimeControl "3 min + 2 sec"]
[WhiteElo "1481"]
[BlackElo "1733"]

1. d4 {[%clk 00:03:02]} {[%emt 00:00:01]} d5 {[%clk 00:03:04]} 2. c4 {[%clk
00:03:04]} e6 {[%clk 00:03:05]} 3. Nf3 {[%clk 00:03:04]} {[%emt 00:00:02]} c5
{[%clk 00:03:07]} 4. cxd5 {[%emt 00:00:03]} exd5 5. dxc5 {[%clk 00:03:03]}
{[%emt 00:00:02]} Bxc5 {[%clk 00:03:05]} {[%emt 00:00:05]} 6. e3 {[%clk
00:02:59]} {[%emt 00:00:05]} Nc6 {[%clk 00:03:03]} {[%emt 00:00:04]} 7. Nc3
{[%clk 00:02:59]} {[%emt 00:00:02]} Nf6 {[%clk 00:03:03]} {[%emt 00:00:02]} 8.
Bb5 {[%clk 00:02:59]} {[%emt 00:00:03]} O-O {[%clk 00:03:01]} {[%emt 00:00:04]}
9. O-O {[%clk 00:02:57]} {[%emt 00:00:04]} a6 {[%clk 00:02:49]} {[%emt
00:00:14]} 10. Bxc6 {[%clk 00:02:50]} {[%emt 00:00:09]} bxc6 {[%clk 00:02:51]}
11. h3 {[%clk 00:02:45]} {[%emt 00:00:07]} h6 {[%clk 00:02:36]} {[%emt
00:00:17]} 12. Bd2 {[%clk 00:02:41]} {[%emt 00:00:06]} Rb8 {[%clk 00:02:37]}
{[%emt 00:00:02]} 13. b3 {[%clk 00:02:37]} {[%emt 00:00:05]} a5 {[%clk
00:02:24]} {[%emt 00:00:15]} 14. Qc2 {[%clk 00:02:36]} {[%emt 00:00:03]} Ba6
{[%clk 00:02:21]} {[%emt 00:00:05]} 15. Rfc1 {[%clk 00:02:28]} {[%emt
00:00:09]} Bb4 {[%clk 00:02:14]} {[%emt 00:00:09]} 16. Na4 {[%clk 00:02:18]}
{[%emt 00:00:12]} Bxd2 {[%clk 00:01:59]} {[%emt 00:00:18]} 17. Qxd2 {[%clk
00:02:19]} Ne4 {[%clk 00:01:58]} {[%emt 00:00:03]} 18. Qe1 {[%clk 00:02:14]}
{[%emt 00:00:07]} Rc8 {[%clk 00:01:53]} {[%emt 00:00:08]} 19. Nc5 {[%clk
00:02:13]} {[%emt 00:00:03]} Nxc5 {[%clk 00:01:24]} {[%emt 00:00:32]} 20. Rxc5
{[%clk 00:02:13]} {[%emt 00:00:01]} a4 {[%clk 00:01:17]} {[%emt 00:00:09]} 21.
b4 {[%clk 00:02:02]} {[%emt 00:00:13]} Bc4 {[%clk 00:01:09]} {[%emt 00:00:10]}
22. a3 {[%clk 00:02:03]} {[%emt 00:00:01]} Qd6 {[%clk 00:01:07]} {[%emt
00:00:04]} 23. Nd4 {[%clk 00:02:03]} {[%emt 00:00:02]} Rfe8 {[%clk 00:01:03]}
{[%emt 00:00:06]} 24. Qd1 {[%clk 00:01:57]} {[%emt 00:00:08]} Bb5 {[%clk
00:00:58]} {[%emt 00:00:06]} 25. Nxb5 {[%clk 00:01:56]} {[%emt 00:00:04]} cxb5
{[%clk 00:00:59]} 26. Rxd5 {[%clk 00:01:52]} {[%emt 00:00:06]} Qc6 {[%clk
00:00:53]} {[%emt 00:00:08]} 27. Rc5 {[%clk 00:01:52]} {[%emt 00:00:02]} Qb7
{[%clk 00:00:50]} {[%emt 00:00:05]} 28. Rac1 {[%clk 00:01:51]} {[%emt
00:00:03]} Rcd8 {[%clk 00:00:46]} {[%emt 00:00:06]} 29. Qe2 {[%clk 00:01:50]}
{[%emt 00:00:03]} Re6 {[%clk 00:00:45]} {[%emt 00:00:04]} 30. Qxb5 {[%clk
00:01:48]} {[%emt 00:00:04]} Qe4 {[%clk 00:00:41]} {[%emt 00:00:06]} 31. Qc4
{[%clk 00:01:43]} {[%emt 00:00:06]} Qb7 {[%clk 00:00:31]} {[%emt 00:00:13]} 32.
Rc7 {[%clk 00:01:39]} {[%emt 00:00:06]} Qa8 {[%clk 00:00:27]} {[%emt 00:00:06]}
33. Rc8 {[%clk 00:01:36]} {[%emt 00:00:05]} Rxc8 {[%clk 00:00:25]} {[%emt
00:00:05]} 34. Qxc8+ {[%clk 00:01:37]} Qxc8 {[%clk 00:00:24]} {[%emt 00:00:03]}
35. Rxc8+ {[%clk 00:01:38]} {[%emt 00:00:01]} Kh7 {[%clk 00:00:25]} 36. Ra8
{[%clk 00:01:39]} {[%emt 00:00:01]} Rd6 {[%clk 00:00:24]} {[%emt 00:00:04]} 37.
Rxa4 {[%clk 00:01:39]} {[%emt 00:00:01]} 1-0

[ePGN "0.1;DGT LiveChess/2.2.5"]

[Event "Biel DQA Blitzn"]
[Site "Biel/Bienne, Switzerland"]
[Date "2022.07.17"]
[Round "6.1"]
[White "Sumarriva Paulin, Laura"]
[Black "Cornileau, Juliette"]
[Result "1-0"]
[TimeControl "3 min + 2 sec"]
[WhiteElo "1886"]
[BlackElo "1653"]

1. d4 {[%clk 00:03:02]} {[%emt 00:00:01]} Nf6 {[%clk 00:03:01]} {[%emt
00:00:04]} 2. c4 {[%clk 00:03:02]} {[%emt 00:00:01]} e6 {[%clk 00:03:01]}
{[%emt 00:00:01]} 3. Nc3 {[%clk 00:03:03]} {[%emt 00:00:02]} Bb4 {[%clk
00:03:01]} {[%emt 00:00:02]} 4. e3 {[%clk 00:03:02]} {[%emt 00:00:01]} d5
{[%clk 00:02:57]} {[%emt 00:00:07]} 5. a3 {[%clk 00:03:00]} {[%emt 00:00:04]}
Bxc3+ {[%clk 00:02:57]} {[%emt 00:00:02]} 6. bxc3 {[%clk 00:03:00]} {[%emt
00:00:02]} O-O {[%clk 00:02:57]} {[%emt 00:00:02]} 7. Bd3 {[%clk 00:02:57]}
{[%emt 00:00:05]} b6 {[%clk 00:02:38]} {[%emt 00:00:21]} 8. Nf3 {[%clk
00:02:56]} {[%emt 00:00:03]} Ba6 {[%clk 00:02:21]} {[%emt 00:00:20]} 9. cxd5
{[%clk 00:02:54]} {[%emt 00:00:03]} Bxd3 {[%clk 00:02:10]} {[%emt 00:00:12]} 10.
Qxd3 {[%clk 00:02:55]} {[%emt 00:00:01]} exd5 {[%clk 00:02:11]} {[%emt
00:00:02]} 11. O-O {[%clk 00:02:51]} {[%emt 00:00:05]} Nc6 {[%clk 00:02:09]}
{[%emt 00:00:04]} 12. c4 {[%clk 00:02:47]} {[%emt 00:00:07]} dxc4 {[%clk
00:02:04]} {[%emt 00:00:06]} 13. Qxc4 {[%clk 00:02:47]} {[%emt 00:00:02]} Na5
{[%clk 00:02:05]} {[%emt 00:00:01]} 14. Qc2 {[%clk 00:02:33]} {[%emt 00:00:15]}
Qd5 {[%clk 00:02:02]} {[%emt 00:00:05]} 15. Qxc7 {[%clk 00:02:18]} {[%emt
00:00:17]} Nb3 {[%clk 00:01:47]} {[%emt 00:00:18]} 16. Rb1 {[%clk 00:02:17]}
{[%emt 00:00:04]} Na5 {[%clk 00:01:23]} {[%emt 00:00:26]} 17. Qg3 {[%clk
00:01:59]} {[%emt 00:00:19]} Ne4 {[%clk 00:01:21]} {[%emt 00:00:03]} 18. Qg4
{[%clk 00:01:41]} {[%emt 00:00:20]} Nc3 {[%clk 00:01:19]} {[%emt 00:00:05]} 19.
Ra1 {[%clk 00:01:41]} {[%emt 00:00:03]} Nb3 {[%clk 00:01:04]} {[%emt 00:00:17]}
20. Bb2 {[%clk 00:01:36]} {[%emt 00:00:06]} Nxa1 {[%clk 00:00:54]} {[%emt
00:00:13]} 21. Bxc3 {[%clk 00:01:37]} {[%emt 00:00:02]} Nb3 {[%clk 00:00:55]}
{[%emt 00:00:01]} 22. Nh4 {[%clk 00:01:23]} {[%emt 00:00:16]} Qe6 {[%clk
00:00:47]} {[%emt 00:00:09]} 23. Nf5 {[%clk 00:01:18]} {[%emt 00:00:07]} g6
{[%clk 00:00:43]} {[%emt 00:00:06]} 24. Nh6+ {[%emt 00:00:10]} Kg7 {[%clk
00:00:33]} {[%emt 00:00:06]} 25. d5+ {[%clk 00:01:16]} {[%emt 00:00:02]} 1-0

[Event "Biel DQA Blitzn"]
[Site "Biel/Bienne, Switzerland"]
[Date "2022.07.17"]
[Round "6.2"]
[White "Moracchini, Margaux"]
[Black "Keymer, Cecilia"]
[Result "1-0"]
[TimeControl "3 min + 2 sec"]
[WhiteElo "1825"]
[BlackElo "1652"]

1. e4 {[%clk 00:03:03]} e5 {[%clk 00:03:04]} {[%emt 00:00:01]} 2. Nf3 {[%clk
00:03:03]} Nc6 {[%clk 00:03:05]} 3. d4 {[%clk 00:03:02]} {[%emt 00:00:04]} exd4
{[%clk 00:03:06]} 4. Nxd4 {[%clk 00:03:03]} {[%emt 00:00:01]} Nf6 {[%clk
00:03:07]} {[%emt 00:00:01]} 5. Nc3 {[%clk 00:03:00]} {[%emt 00:00:05]} Bb4
{[%clk 00:03:08]} {[%emt 00:00:01]} 6. Nxc6 {[%clk 00:03:00]} {[%emt 00:00:02]}
bxc6 {[%clk 00:03:10]} 7. Bd3 {[%clk 00:02:58]} {[%emt 00:00:04]} d5 {[%clk
00:03:08]} {[%emt 00:00:04]} 8. exd5 {[%clk 00:02:58]} {[%emt 00:00:02]} cxd5
{[%clk 00:03:09]} 9. O-O {[%clk 00:02:58]} {[%emt 00:00:02]} O-O {[%clk
00:03:07]} {[%emt 00:00:04]} 10. Bg5 {[%clk 00:02:51]} {[%emt 00:00:09]} c6
{[%clk 00:03:06]} {[%emt 00:00:03]} 11. Qf3 {[%clk 00:02:45]} {[%emt 00:00:08]}
Bd6 {[%clk 00:03:07]} {[%emt 00:00:01]} 12. Bxf6 {[%clk 00:02:36]} {[%emt
00:00:10]} Qxf6 {[%clk 00:03:09]} {[%emt 00:00:01]} 13. Qxf6 {[%clk 00:02:37]}
{[%emt 00:00:01]} gxf6 {[%clk 00:03:10]} 14. Ne2 {[%clk 00:01:58]} {[%emt
00:00:40]} Rb8 {[%clk 00:02:58]} {[%emt 00:00:14]} 15. b3 {[%clk 00:01:57]}
{[%emt 00:00:03]} Be5 {[%clk 00:02:54]} {[%emt 00:00:06]} 16. Rad1 {[%clk
00:01:49]} {[%emt 00:00:10]} Be6 {[%clk 00:02:51]} {[%emt 00:00:05]} 17. Ng3
{[%clk 00:01:47]} {[%emt 00:00:04]} Rfe8 {[%clk 00:02:07]} {[%emt 00:00:46]} 18.
Bf5 {[%clk 00:01:28]} {[%emt 00:00:21]} c5 {[%clk 00:01:48]} {[%emt 00:00:21]}
19. Bxe6 {[%clk 00:01:14]} {[%emt 00:00:16]} fxe6 {[%clk 00:01:48]} {[%emt
00:00:02]} 20. Rfe1 {[%clk 00:01:14]} {[%emt 00:00:02]} Bc7 {[%clk 00:01:37]}
{[%emt 00:00:13]} 21. Nh5 {[%clk 00:01:03]} {[%emt 00:00:13]} Kf7 {[%clk
00:01:33]} {[%emt 00:00:06]} 22. Rd3 {[%clk 00:01:02]} {[%emt 00:00:02]} Rg8
{[%clk 00:01:14]} {[%emt 00:00:22]} 23. Rf3 {[%clk 00:01:00]} {[%emt 00:00:05]}
Rg6 {[%clk 00:01:11]} {[%emt 00:00:05]} 24. Nf4 {[%clk 00:00:58]} {[%emt
00:00:04]} Bxf4 {[%clk 00:01:04]} {[%emt 00:00:08]} 25. Rxf4 {[%clk 00:00:59]}
Re8 {[%clk 00:00:59]} {[%emt 00:00:06]} 26. Ra4 {[%clk 00:00:59]} {[%emt
00:00:03]} Re7 {[%clk 00:00:57]} {[%emt 00:00:04]} 27. Ra5 {[%clk 00:00:58]}
{[%emt 00:00:03]} Rc7 {[%clk 00:00:58]} {[%emt 00:00:01]} 28. Ra6 {[%clk
00:00:58]} {[%emt 00:00:02]} f5 {[%clk 00:00:55]} {[%emt 00:00:05]} 29. f4
{[%clk 00:00:51]} {[%emt 00:00:10]} Ke7 {[%clk 00:00:51]} {[%emt 00:00:05]} 30.
Kf2 {[%clk 00:00:49]} {[%emt 00:00:04]} Kd7 {[%clk 00:00:40]} {[%emt 00:00:14]}
31. Kf3 {[%clk 00:00:48]} {[%emt 00:00:03]} Rb7 {[%clk 00:00:37]} {[%emt
00:00:05]} 32. Ra5 {[%clk 00:00:45]} {[%emt 00:00:05]} Kc6 {[%clk 00:00:35]}
{[%emt 00:00:04]} 33. Ra6+ {[%clk 00:00:47]} Kd7 {[%clk 00:00:34]} {[%emt
00:00:03]} 34. Ra5 {[%clk 00:00:48]} Kc6 {[%clk 00:00:36]} 35. Ra6+ Kd7 36. Re5
{[%clk 00:00:39]} {[%emt 00:00:12]} Rc7 {[%clk 00:00:32]} {[%emt 00:00:08]} 37.
Ra5 {[%clk 00:00:36]} {[%emt 00:00:05]} Kc8 {[%clk 00:00:23]} {[%emt 00:00:11]}
38. Ra6 {[%clk 00:00:37]} {[%emt 00:00:02]} Re7 {[%clk 00:00:23]} {[%emt
00:00:02]} 39. Rc6+ {[%clk 00:00:37]} {[%emt 00:00:02]} Kb7 {[%clk 00:00:21]}
{[%emt 00:00:04]} 40. Rxc5 {[%clk 00:00:37]} {[%emt 00:00:02]} Reg7 {[%clk
00:00:20]} {[%emt 00:00:03]} 41. g3 {[%clk 00:00:38]} {[%emt 00:00:02]} h5
{[%clk 00:00:19]} {[%emt 00:00:03]} 42. Rc3 {[%clk 00:00:34]} {[%emt 00:00:06]}
Rg8 {[%clk 00:00:17]} {[%emt 00:00:04]} 43. Rce3 {[%clk 00:00:33]} {[%emt
00:00:03]} Rc8 {[%clk 00:00:16]} {[%emt 00:00:04]} 44. Re2 {[%clk 00:00:32]}
{[%emt 00:00:03]} Rc6 {[%clk 00:00:16]} {[%emt 00:00:01]} 45. R5e3 {[%clk
00:00:20]} {[%emt 00:00:13]} Kc7 {[%clk 00:00:18]} {[%emt 00:00:01]} 46. Rd3
{[%clk 00:00:16]} {[%emt 00:00:06]} Rd6 {[%clk 00:00:13]} {[%emt 00:00:06]} 47.
Rc3+ {[%clk 00:00:17]} {[%emt 00:00:02]} Kd7 {[%clk 00:00:13]} {[%emt
00:00:02]} 48. Kg2 {[%clk 00:00:15]} {[%emt 00:00:03]} Ra6 {[%clk 00:00:11]}
{[%emt 00:00:05]} 49. a4 {[%clk 00:00:15]} {[%emt 00:00:02]} Rd6 {[%clk
00:00:11]} {[%emt 00:00:02]} 50. Kh3 {[%clk 00:00:16]} {[%emt 00:00:01]} Rg4
{[%clk 00:00:10]} {[%emt 00:00:03]} 51. Kg2 {[%clk 00:00:16]} {[%emt 00:00:02]}
Rg6 {[%clk 00:00:11]} {[%emt 00:00:01]} 52. Kh3 Rg4 53. Kg2 {[%clk 00:00:18]}
Rg6 {[%clk 00:00:14]} 54. Rc5 {[%clk 00:00:17]} {[%emt 00:00:03]} Rg8 {[%clk
00:00:12]} {[%emt 00:00:04]} 55. Kh3 {[%clk 00:00:17]} {[%emt 00:00:02]} Rg4
{[%clk 00:00:13]} {[%emt 00:00:02]} 56. Rb5 {[%clk 00:00:16]} {[%emt 00:00:03]}
Kc7 {[%clk 00:00:12]} {[%emt 00:00:03]} 57. Re3 {[%clk 00:00:15]} {[%emt
00:00:03]} Rc6 {[%clk 00:00:12]} {[%emt 00:00:02]} 58. Re2 {[%clk 00:00:15]}
{[%emt 00:00:02]} a6 {[%clk 00:00:10]} {[%emt 00:00:04]} 59. Rb4 {[%clk
00:00:15]} {[%emt 00:00:01]} Kd6 {[%clk 00:00:10]} {[%emt 00:00:02]} 60. Rb8
{[%clk 00:00:14]} {[%emt 00:00:03]} Rg7 {[%clk 00:00:10]} {[%emt 00:00:02]} 61.
Rd8+ {[%clk 00:00:12]} {[%emt 00:00:04]} Kc7 {[%clk 00:00:10]} {[%emt
00:00:02]} 62. Rh8 {[%clk 00:00:11]} {[%emt 00:00:03]} h4 {[%emt 00:00:08]} 63.
Rxh4 {[%clk 00:00:11]} {[%emt 00:00:01]} Kb6 {[%clk 00:00:05]} {[%emt
00:00:02]} 64. Rh6 {[%clk 00:00:11]} {[%emt 00:00:02]} Re7 {[%clk 00:00:05]}
{[%emt 00:00:02]} 65. Rf6 {[%clk 00:00:10]} {[%emt 00:00:02]} Rcc7 {[%clk
00:00:04]} {[%emt 00:00:03]} 66. Rfxe6+ {[%clk 00:00:11]} {[%emt 00:00:02]}
Rxe6 {[%clk 00:00:05]} 67. Rxe6+ {[%clk 00:00:12]} Kc5 {[%clk 00:00:05]} {[%emt
00:00:01]} 68. Kg2 {[%clk 00:00:10]} {[%emt 00:00:04]} Kb4 {[%clk 00:00:07]} 69.
Re2 {[%clk 00:00:10]} {[%emt 00:00:02]} Ka3 {[%emt 00:00:02]} 70. h4 {[%emt
00:00:05]} Rh7 {[%emt 00:00:02]} 1-0

[Event "Biel DQA Blitzn"]
[Site "Biel/Bienne, Switzerland"]
[Date "2022.07.17"]
[Round "6.3"]
[White "Ciarletta, Iris"]
[Black "Avilova, Yulia"]
[Result "1-0"]
[TimeControl "3 min + 2 sec"]
[WhiteElo "1481"]
[BlackElo "1597"]

1. d4 {[%clk 00:03:02]} {[%emt 00:00:01]} d5 {[%clk 00:03:01]} {[%emt
00:00:03]} 2. c4 {[%clk 00:03:03]} {[%emt 00:00:01]} e6 {[%clk 00:03:03]} 3.
Nf3 {[%clk 00:03:04]} {[%emt 00:00:02]} Nf6 {[%clk 00:03:03]} {[%emt 00:00:01]}
4. Nc3 {[%clk 00:03:03]} {[%emt 00:00:03]} c5 {[%clk 00:03:04]} {[%emt
00:00:01]} 5. cxd5 {[%clk 00:03:01]} {[%emt 00:00:04]} exd5 {[%clk 00:03:05]}
{[%emt 00:00:02]} 6. dxc5 {[%clk 00:03:01]} {[%emt 00:00:02]} Bxc5 {[%clk
00:03:05]} 7. e3 {[%clk 00:03:02]} {[%emt 00:00:01]} Nc6 {[%clk 00:03:06]}
{[%emt 00:00:01]} 8. Bb5 {[%clk 00:03:02]} {[%emt 00:00:02]} a6 {[%clk
00:03:04]} {[%emt 00:00:04]} 9. Bxc6+ {[%clk 00:03:02]} {[%emt 00:00:02]} bxc6
{[%clk 00:03:05]} {[%emt 00:00:01]} 10. h3 {[%clk 00:03:02]} {[%emt 00:00:02]}
O-O {[%clk 00:03:05]} {[%emt 00:00:02]} 11. O-O {[%clk 00:03:02]} {[%emt
00:00:02]} Bb7 {[%clk 00:03:05]} {[%emt 00:00:03]} 12. Bd2 {[%clk 00:02:50]}
{[%emt 00:00:14]} Qc7 {[%clk 00:03:02]} {[%emt 00:00:04]} 13. Ne2 {[%clk
00:02:49]} {[%emt 00:00:03]} Rfd8 {[%clk 00:03:02]} {[%emt 00:00:02]} 14. Qc2
{[%clk 00:02:47]} {[%emt 00:00:05]} Bb6 {[%clk 00:02:56]} {[%emt 00:00:06]} 15.
Bc3 {[%clk 00:02:45]} {[%emt 00:00:06]} Ne4 {[%clk 00:02:51]} {[%emt 00:00:07]}
16. Be5 {[%clk 00:02:39]} {[%emt 00:00:08]} Qe7 {[%clk 00:02:46]} {[%emt
00:00:06]} 17. Bh2 {[%clk 00:02:32]} {[%emt 00:00:09]} Rac8 {[%clk 00:02:46]}
{[%emt 00:00:02]} 18. Nc3 {[%clk 00:02:26]} {[%emt 00:00:08]} Nf6 {[%clk
00:02:41]} {[%emt 00:00:07]} 19. Rfe1 {[%clk 00:02:24]} {[%emt 00:00:05]} c5
{[%clk 00:02:30]} {[%emt 00:00:13]} 20. Rad1 {[%clk 00:02:21]} {[%emt
00:00:04]} Qf8 {[%clk 00:02:23]} {[%emt 00:00:10]} 21. Qb3 {[%clk 00:02:10]}
{[%emt 00:00:13]} Rc6 {[%clk 00:02:08]} {[%emt 00:00:16]} 22. Na4 {[%clk
00:01:56]} {[%emt 00:00:16]} c4 {[%clk 00:02:00]} {[%emt 00:00:10]} 23. Qc3
{[%clk 00:01:53]} {[%emt 00:00:05]} Ba7 {[%clk 00:01:57]} {[%emt 00:00:05]} 24.
Nd4 {[%clk 00:01:50]} {[%emt 00:00:05]} Rcc8 {[%clk 00:01:55]} {[%emt
00:00:04]} 25. Qc2 {[%clk 00:01:41]} {[%emt 00:00:10]} Qb4 {[%clk 00:01:40]}
{[%emt 00:00:16]} 26. Nc3 {[%clk 00:01:36]} {[%emt 00:00:09]} Ne4 {[%clk
00:01:15]} {[%emt 00:00:26]} 27. Nxe4 {[%clk 00:01:28]} {[%emt 00:00:10]} dxe4
{[%clk 00:01:16]} {[%emt 00:00:01]} 28. Nf5 {[%clk 00:01:24]} {[%emt 00:00:05]}
Qc5 {[%clk 00:00:56]} {[%emt 00:00:22]} 29. Ng3 {[%clk 00:01:12]} {[%emt
00:00:16]} h6 {[%clk 00:00:48]} {[%emt 00:00:10]} 30. Rxd8+ {[%clk 00:00:57]}
{[%emt 00:00:16]} Rxd8 {[%clk 00:00:49]} 31. Rd1 {[%clk 00:00:58]} Rd5 {[%clk
00:00:42]} {[%emt 00:00:09]} 32. Ne2 {[%clk 00:00:56]} {[%emt 00:00:05]} Rd3
{[%clk 00:00:24]} {[%emt 00:00:21]} 33. Nf4 {[%clk 00:00:55]} {[%emt 00:00:03]}
Rxd1+ {[%clk 00:00:22]} {[%emt 00:00:04]} 34. Qxd1 {[%clk 00:00:56]} {[%emt
00:00:01]} Qc6 {[%clk 00:00:18]} {[%emt 00:00:06]} 35. Bg3 {[%clk 00:00:53]}
{[%emt 00:00:05]} Kh7 {[%clk 00:00:14]} {[%emt 00:00:06]} 36. Ne2 {[%clk
00:00:48]} {[%emt 00:00:08]} a5 {[%clk 00:00:13]} {[%emt 00:00:03]} 37. Nc3
{[%clk 00:00:49]} {[%emt 00:00:01]} a4 {[%clk 00:00:14]} 38. Qxa4 {[%clk
00:00:48]} {[%emt 00:00:03]} Qxa4 {[%clk 00:00:15]} {[%emt 00:00:02]} 39. Nxa4
{[%clk 00:00:49]} Bc6 {[%clk 00:00:15]} {[%emt 00:00:02]} 40. Nc3 {[%clk
00:00:50]} {[%emt 00:00:01]} Bb6 {[%clk 00:00:12]} {[%emt 00:00:04]} 41. Kf1
{[%clk 00:00:49]} {[%emt 00:00:03]} f5 {[%clk 00:00:13]} {[%emt 00:00:01]} 42.
Be5 {[%clk 00:00:48]} {[%emt 00:00:02]} Bd8 {[%clk 00:00:12]} {[%emt 00:00:03]}
43. Ne2 {[%clk 00:00:41]} {[%emt 00:00:09]} g5 {[%clk 00:00:13]} {[%emt
00:00:01]} 44. Nd4 {[%clk 00:00:42]} {[%emt 00:00:02]} Bb7 {[%clk 00:00:10]}
{[%emt 00:00:04]} 45. Nxf5 {[%clk 00:00:41]} {[%emt 00:00:04]} Kg6 {[%clk
00:00:09]} {[%emt 00:00:03]} 46. Nd4 {[%clk 00:00:39]} {[%emt 00:00:04]} Ba6
{[%clk 00:00:07]} {[%emt 00:00:04]} 47. Ke1 {[%clk 00:00:40]} {[%emt 00:00:01]}
Ba5+ {[%clk 00:00:06]} {[%emt 00:00:02]} 48. Kd1 {[%clk 00:00:39]} {[%emt
00:00:03]} c3 {[%clk 00:00:06]} {[%emt 00:00:03]} 49. bxc3 {[%clk 00:00:37]}
{[%emt 00:00:05]} Bxc3 {[%clk 00:00:07]} 50. Kc2 {[%clk 00:00:31]} {[%emt
00:00:07]} Ba1 {[%clk 00:00:06]} {[%emt 00:00:03]} 51. Nc6 {[%clk 00:00:24]}
{[%emt 00:00:09]} Bxe5 {[%clk 00:00:05]} {[%emt 00:00:02]} 52. Nxe5+ {[%clk
00:00:25]} {[%emt 00:00:01]} Kf5 {[%clk 00:00:07]} {[%emt 00:00:01]} 53. Nd7
{[%clk 00:00:23]} {[%emt 00:00:04]} Bf1 {[%clk 00:00:07]} {[%emt 00:00:01]} 54.
g3 {[%clk 00:00:20]} {[%emt 00:00:06]} Bxh3 {[%clk 00:00:07]} {[%emt 00:00:02]}
55. Nc5 {[%clk 00:00:21]} {[%emt 00:00:01]} Ke5 {[%clk 00:00:06]} {[%emt
00:00:02]} 56. Kd2 {[%clk 00:00:20]} {[%emt 00:00:03]} Bc8 {[%clk 00:00:05]}
{[%emt 00:00:03]} 57. Nb3 {[%clk 00:00:18]} {[%emt 00:00:04]} Kf5 {[%clk
00:00:06]} {[%emt 00:00:01]} 58. Nd4+ {[%clk 00:00:19]} Ke5 {[%clk 00:00:07]}
{[%emt 00:00:01]} 59. a3 {[%clk 00:00:20]} {[%emt 00:00:01]} h5 {[%emt
00:00:03]} 60. Nc6+ {[%clk 00:00:20]} Kd6 {[%clk 00:00:07]} {[%emt 00:00:01]}
61. Nd4 {[%clk 00:00:21]} {[%emt 00:00:02]} h4 {[%clk 00:00:07]} {[%emt
00:00:02]} 62. gxh4 {[%clk 00:00:18]} {[%emt 00:00:05]} gxh4 {[%clk 00:00:08]}
{[%emt 00:00:01]} 63. Ne2 {[%clk 00:00:19]} h3 {[%clk 00:00:09]} {[%emt
00:00:01]} 64. Ng3 {[%clk 00:00:20]} {[%emt 00:00:01]} h2 {[%clk 00:00:08]}
{[%emt 00:00:02]} 65. Nxe4+ {[%clk 00:00:20]} {[%emt 00:00:02]} Ke5 {[%clk
00:00:08]} {[%emt 00:00:02]} 66. Ng3 {[%clk 00:00:21]} {[%emt 00:00:01]} Bb7
{[%clk 00:00:09]} {[%emt 00:00:02]} 67. Ke2 {[%clk 00:00:19]} {[%emt 00:00:04]}
h1=Q {[%clk 00:00:09]} 68. Nxh1 {[%clk 00:00:19]} {[%emt 00:00:04]} Bxh1 {[%clk
00:00:10]} 69. f3 {[%clk 00:00:20]} Bg2 {[%clk 00:00:10]} {[%emt 00:00:02]} 70.
a4 {[%clk 00:00:21]} {[%emt 00:00:01]} Bh3 {[%clk 00:00:10]} {[%emt 00:00:01]}
71. e4 {[%clk 00:00:21]} {[%emt 00:00:03]} Bd7 {[%clk 00:00:11]} {[%emt
00:00:01]} 72. a5 {[%clk 00:00:21]} {[%emt 00:00:02]} Kd6 {[%clk 00:00:10]}
{[%emt 00:00:03]} 73. Ke3 {[%clk 00:00:22]} {[%emt 00:00:01]} Bb5 {[%clk
00:00:10]} {[%emt 00:00:02]} 74. f4 {[%clk 00:00:22]} {[%emt 00:00:01]} Kc5
{[%clk 00:00:07]} {[%emt 00:00:05]} 75. f5 {[%clk 00:00:21]} {[%emt 00:00:03]}
Bd7 {[%clk 00:00:06]} {[%emt 00:00:02]} 76. Kf4 {[%clk 00:00:22]} {[%emt
00:00:01]} Kb5 {[%clk 00:00:07]} {[%emt 00:00:02]} 77. e5 {[%clk 00:00:24]}
{[%emt 00:00:01]} Kxa5 {[%clk 00:00:05]} {[%emt 00:00:04]} 78. e6 {[%clk
00:00:25]} Be8 {[%clk 00:00:06]} {[%emt 00:00:01]} 79. Ke5 {[%clk 00:00:26]}
Kb6 {[%clk 00:00:07]} 80. Kd6 {[%clk 00:00:27]} Kb7 {[%clk 00:00:07]} {[%emt
00:00:02]} 81. f6 {[%clk 00:00:28]} Kc8 {[%clk 00:00:08]} {[%emt 00:00:01]} 82.
f7 {[%clk 00:00:29]} Bxf7 {[%clk 00:00:08]} {[%emt 00:00:01]} 83. exf7 {[%clk
00:00:31]} {[%emt 00:00:01]} 1-0